[Event "CRO-ch 2020"]
[Site "Vinkovci"]
[Date "2020.07.01"]
[Round "11.4"]
[White "Martinovic, Sasa"]
[Black "Jovanic, Ognjen"]
[Result "1-0"]
[ECO "D15"]
[WhiteElo "2532"]
[BlackElo "2524"]
[Annotator "ChessBase"]
[PlyCount "93"]
[EventDate "2020.06.19"]
[EventType "tourn"]
[EventCountry "CRO"]
[SourceTitle "playchess.com"]
[Source "ChessBase"]
[SourceQuality "1"]
[TimeControl "40/5400+30:1800+30"]

1. d4 {[%emt 0:00:00]} d5 {[%emt 0:00:00]} 2. c4 {[%emt 0:00:00]} c6 {[%emt 0:00:17]} 3. Nc3 {[%emt 0:00:00]} Nf6 {[%emt 0:00:19]} 4. e3 {[%emt 0:00:00]} a6 {[%emt 0:00:53]} 5. Nf3 {[%emt 0:00:06]} b5 {[%emt 0:00:42]} 6. b3 {[%emt 0:00:14]} Bg4 {[%emt 0:00:21]} 7. a4 {[%emt 0:00:39]} b4 {[%emt 0:05:50]} 8. Ne2 {[%emt 0:00:11]} Bxf3 {[%emt 0:01:29]} 9. gxf3 {[%emt 0:00:05]} Nbd7 {[%emt 0:01:53]} 10. Bg2 {[%emt 0:02:39]} a5 {[%emt 0:04:13]} 11. e4 {[%emt 0:04:16]} e6 {[%emt 0:00:57]} 12. Be3 {[%emt 0:05:12]} g6 {[%emt 0:04:00]} 13. Rc1 {[%emt 0:08:45]} Bg7 {[%emt 0:04:16]} 14. h4 {[%emt 0:01:24]} h5 {[%emt 0:11:51]} 15. Qd2 {[%emt 0:15:19]} Qb8 {[%emt 0:15:52]} 16. O-O {[%emt 0:11:41]} O-O {[%emt 0:03:24]} 17. Bf4 {[%emt 0:05:58]} Qd8 {[%emt 0:04:02]} 18. Bg5 {[%emt 0:10:23]} Qb8 {[%emt 0:00:56]} 19. Bf4 {[%emt 0:01:44]} Qd8 {[%emt 0:00:08]} 20. Bg5 {[%emt 0:01:16]} Qb8 {[%emt 0:02:18]} 21. cxd5 {[%emt 0:00:27]} cxd5 {[%emt 0:00:20]} 22. Rc6 {[%emt 0:00:37]} Rc8 {[%emt 0:04:05]} 23. Qc2 {[%emt 0:03:31]} Nb6 {[%emt 0:12:14]} 24. Rc1 {[%emt 0:02:00]} Qa7 {[%emt 0:01:17]} 25. Qd3 {[%emt 0:04:10]} Rxc6 {[%emt 0:00:09]} 26. Rxc6 {[%emt 0:00:01]} Rc8 {[%emt 0:01:07]} 27. Qb5 {[%emt 0:01:05]} Rxc6 {[%emt 0:00:27]} 28. Qxc6 {[%emt 0:00:01]} Nbd7 {[%emt 0:02:16]} 29. e5 {[%emt 0:05:52]} Nh7 {[%emt 0:05:55]} 30. Bd8 {[%emt 0:00:03]} Nb8 {[%emt 0:02:45]} 31. Qb5 {[%emt 0:02:16]} Bf8 {[%emt 0:00:06]} 32. Bxa5 {[%emt 0:01:29]} Na6 {[%emt 0:02:50]} 33. f4 {[%emt 0:05:27]} Be7 {[%emt 0:00:23]} 34. Bf1 {[%emt 0:01:26]} Nf8 {[%emt 0:01:04]} 35. Qb6 {[%emt 0:07:26]} Qxb6 {[%emt 0:00:22]} 36. Bxb6 {[%emt 0:00:01]} Nd7 {[%emt 0:00:09]} 37. Ba5 {[%emt 0:02:04]} Nab8 {[%emt 0:01:54]} 38. Bc7 {[%emt 0:00:33]} Na6 {[%emt 0:00:23]} 39. Bd6 {[%emt 0:00:34]} Bd8 {[%emt 0:05:18]} 40. Nc1 {[%emt 0:00:00]} Ndb8 {[%emt 0:00:00]} 41. Bb5 {[%emt 0:09:53]} Bb6 {[%emt 0:00:34]} 42. Nd3 {[%emt 0:01:50]} Ba5 {[%emt 0:00:11]} 43. Kf1 {[%emt 0:04:43]} Kg7 {[%emt 0:00:45]} 44. Ke2 {[%emt 0:00:49]} Kg8 {[%emt 0:00:40]} 45. Ke3 {[%emt 0:01:47]} Kg7 {[%emt 0:00:02]} 46. Bxa6 {[%emt 0:03:22]} Nxa6 {[%emt 0:00:07]} 47. Nc5 {[%emt 0:00:03]} 1-0

[Event "CRO-ch 2020"]
[Site "Vinkovci"]
[Date "2020.07.01"]
[Round "11.5"]
[White "Stevic, Hrvoje"]
[Black "Kovacevic, Blazimir"]
[Result "1-0"]
[ECO "B04"]
[WhiteElo "2575"]
[BlackElo "2410"]
[Annotator "ChessBase"]
[PlyCount "53"]
[EventDate "2020.06.19"]
[EventType "tourn"]
[EventCountry "CRO"]
[SourceTitle "playchess.com"]
[Source "ChessBase"]
[SourceQuality "1"]
[TimeControl "40/5400+30:1800+30"]

1. e4 {[%emt 0:00:00]} Nf6 {[%emt 0:00:00]} 2. e5 {[%emt 0:00:00]} Nd5 {[%emt 0:00:00]} 3. d4 {[%emt 0:00:00]} d6 {[%emt 0:00:00]} 4. Nf3 {[%emt 0:00:20]} g6 {[%emt 0:00:00]} 5. Bc4 {[%emt 0:01:10]} Nb6 {[%emt 0:00:01]} 6. Bb3 {[%emt 0:00:28]} Bg7 {[%emt 0:00:07]} 7. Qe2 {[%emt 0:02:39]} O-O {[%emt 0:00:50]} 8. h3 {[%emt 0:00:07]} c5 {[%emt 0:05:22]} 9. dxc5 {[%emt 0:13:30]} dxc5 {[%emt 0:00:06]} 10. Be3 {[%emt 0:00:06]} c4 {[%emt 0:05:21]} 11. Bxc4 {[%emt 0:08:08]} Nxc4 {[%emt 0:00:11]} 12. Qxc4 {[%emt 0:00:05]} Nc6 {[%emt 0:00:24]} 13. Nc3 {[%emt 0:10:45]} Qa5 {[%emt 0:07:14]} 14. O-O {[%emt 0:02:55]} Bf5 {[%emt 0:05:03]} 15. Qh4 {[%emt 0:05:29]} Bxc2 {[%emt 0:21:03]} 16. Bh6 {[%emt 0:11:58]} Rfd8 {[%emt 0:07:25]} 17. Bxg7 {[%emt 0:16:29]} Kxg7 {[%emt 0:00:08]} 18. a3 {[%emt 0:00:22]} Nxe5 {[%emt 0:05:44]} 19. Nd4 {[%emt 0:00:37]} Bd3 {[%emt 0:06:00]} 20. Rfe1 {[%emt 0:00:04]} e6 {[%emt 0:17:28]} 21. Rad1 {[%emt 0:04:29]} Qb6 {[%emt 0:05:38]} 22. Qg3 {[%emt 0:09:00]} Rxd4 {[%emt 0:03:19]} 23. Qxe5+ {[%emt 0:00:07]} Kg8 {[%emt 0:00:26]} 24. Rd2 {[%emt 0:00:36]} Rad8 {[%emt 0:05:09]} 25. Red1 {[%emt 0:00:09]} R8d6 {[%emt 0:01:43]} 26. Qe3 {[%emt 0:04:46]} f6 {[%emt 0:01:58]} 27. Rxd3 {[%emt 0:00:58]} 1-0